[Event "XV American Continental 2022"]
[Site "San Salvador"]
[Date "2022.05.04"]
[Round "3.1"]
[White "Swiercz, Dariusz"]
[Black "Diaz Villagran, Robert"]
[Result "1-0"]
[ECO "C05"]
[WhiteElo "2665"]
[BlackElo "2347"]
[Annotator "TA"]
[PlyCount "89"]
[EventDate "2022.05.02"]
[EventCountry "ESA"]
[SourceTitle "playchess.com"]
[Source "ChessBase"]
[SourceQuality "1"]
[TimeControl "40/5400+30:1800+30"]

{[%evp 17,89,20,50,43,24,-4,-8,-5,49,40,31,27,47,45,51,54,51,45,45,45,45,45,45,45,45,45,45,45,45,37,45,45,45,45,65,33,70,53,34,16,36,0,0,0,0,0,0,0,0,-4,77,14,180,164,222,211,238,165,271,187,366,356,293,294,347,338,2470,2356,29983,29984,29993,2866,2579,2450]} 1. e4 {[%emt 0:00:23][%cal Be2e4,Be4e5][%mdl 32]} e6 {[%emt 0:01:01]} 2. d4 {[%emt 0:00:10]} d5 {[%emt 0:00:07]} 3. Nd2 {[%emt 0:00:05]} Nf6 {[%emt 0:01:08]} 4. e5 {[%emt 0:01:00]} Nfd7 {[%emt 0:00:13]} 5. c3 {[%emt 0:00:10]} c5 {[%emt 0:00:19]} 6. f4 {[%emt 0:03:00]} cxd4 {[%emt 0:03:34]} 7. cxd4 {[%emt 0:00:04]} Nc6 {[%emt 0:00:10]} 8. Ndf3 {[%emt 0:00:40]} Nb6 {[%emt 0:05:39] Recently 8...a5 got a lot of attention.} 9. Bd3 {[%emt 0:05:54]} Bd7 {[%emt 0:01:34]} 10. a3 {[%emt 0:29:03] C05: French Tarrasch: 3...Nf6 4 e5 Nfd7, 5 f4 and 5 Bd3 sidelines.} a5 {[%emt 0:03:23][%cal Ba7a5,Ba5a4][%mdl 32]} 11. b3 {[%emt 0:00:22]} a4 {[%emt 0:05:32]} 12. b4 {[%emt 0:00:18] The position is equal.} Na7 {[%emt 0:00:27]} (12... Ne7 $11) 13. Ne2 $14 {[%emt 0:10:00] [#]} g6 $146 {[%emt 0:07:39]} ({Predecessor:} 13... Rc8 14. g4 h5 15. gxh5 Rxh5 16. Ng3 Rh8 17. f5 Nc4 18. fxe6 Bxe6 19. Bf5 Bxf5 20. Nxf5 {1-0 (48) Salov,S (2267)-Huelsmann,J (2196) Magdeburg 2015}) 14. Nc3 {[%emt 0:08:59]} Bc6 {[%emt 0:31:09]} 15. Rb1 {[%emt 0:19:59]} Be7 {[%emt 0:10:24]} 16. O-O {[%emt 0:00:10]} Bd7 {[%emt 0:09:57]} 17. Rf2 {[%emt 0:02:25]} Rc8 {[%emt 0:00:55]} 18. Bb2 {[%emt 0:02:50]} Kf8 {[%emt 0:01:41]} 19. Nd2 {[%emt 0:04:37]} h5 {[%emt 0:01:35]} 20. Qe2 {[%emt 0:01:23]} Kg7 {[%emt 0:01:32]} 21. Rff1 {[%emt 0:01:18]} Rc7 {[%emt 0:02:07]} 22. g3 {[%emt 0:01:02]} Qb8 {[%emt 0:02:58]} 23. Rbc1 {[%emt 0:00:25]} Rcc8 {[%emt 0:01:42]} 24. h3 {[%emt 0:00:46]} Rcg8 {[%emt 0:00:16]} 25. Kh2 {[%emt 0:01:49][%cal Bg1h2,Bh2g2,Bg2f2][%mdl 32]} Qe8 {[%emt 0:00:18]} 26. Kg2 {[%emt 0:02:07]} Bc6 {[%emt 0:00:11]} 27. Kf2 {[%emt 0:00:04]} Bd8 {[%emt 0:00:24]} 28. Kg1 {[%emt 0:00:48]} (28. Ke1 {is interesting.} Nac8 29. Kd1 Bd7 30. Kc2) 28... Bd7 {[%emt 0:01:06]} 29. Rfe1 {[%emt 0:01:17]} Nbc8 {[%emt 0:00:36]} 30. Nf3 {[%emt 0:00:53]} b5 {[%emt 0:01:42]} 31. Rc2 {[%emt 0:01:42]} Nb6 {[%emt 0:00:23]} 32. Bc1 {[%emt 0:00:01]} Bc6 {[%emt 0:00:47]} 33. Qf1 {[%emt 0:01:54]} Qd7 {[%emt 0:01:01] [#]} (33... Kf8 $11 {remains equal.}) 34. Ree2 {[%emt 0:00:28] White is much more active.} ({Better is} 34. g4 $1 $16) 34... Qb7 $2 {[%emt 0:02:47] A mistake that costs the game.} (34... Nc4 $11 {and Black stays safe.}) 35. g4 $18 {[%emt 0:00:26] And now f5 would win.} hxg4 {[%emt 0:00:17]} (35... Kf8 $142) 36. hxg4 {[%emt 0:00:01]} Nc4 {[%emt 0:00:58]} 37. Rh2 {[%emt 0:00:12] Black must now prevent f5.} Kf8 {[%emt 0:01:37]} (37... Bd7 {was necessary.} 38. f5 exf5) 38. Rh3 {[%emt 0:01:38]} Bb6 $2 {[%emt 0:01:27]} (38... f6 39. Rch2 Rxh3 40. Qxh3 f5) 39. Rch2 {[%emt 0:00:07]} Rxh3 {[%emt 0:00:01]} 40. Qxh3 {[%emt 0:01:24] Threatens to win with Qh7.} Qe7 {[%emt 0:00:43]} 41. Qh7 {[%emt 0:02:15][%cal Of4f5] Strongly threatening f5!} Bd7 $2 {[%emt 0:06:18]} (41... Qe8 42. Ne2 Ke7) 42. f5 {[%emt 0:01:32][%cal Bf4f5,Bf5f6][%mdl 32] White threatens Bh6+ and mate.} g5 {[%emt 0:02:50]} 43. f6 {[%emt 0:00:43]} Qd8 {[%emt 0:00:10]} 44. Qh6+ {[%emt 0:01:14]} (44. Nxg5 $142 Bxd4+ 45. Kh1 Qxf6 46. exf6 Nd6 {[#]} 47. Qg7+ $3 {[%mdl 512]} Rxg7 48. Rh8+ Rg8 49. Nh7+ Ke8 50. Rxg8#) 44... Ke8 {[%emt 0:00:08] [#]} 45. Qg7 $3 {[%emt 0:00:15][%mdl 512] Weighted Error Value: White=0.14 (very precise) /Black=0.45} 1-0

[Event "XV American Continental 2022"]
[Site "San Salvador"]
[Date "2022.05.04"]
[Round "3.2"]
[White "Mekhitarian, Krikor Sevag"]
[Black "Sarkar, Justin"]
[Result "0-1"]
[ECO "E04"]
[WhiteElo "2569"]
[BlackElo "2325"]
[Annotator "TA"]
[PlyCount "92"]
[EventDate "2022.05.02"]
[EventCountry "ESA"]
[SourceTitle "playchess.com"]
[Source "ChessBase"]
[SourceQuality "1"]
[TimeControl "40/5400+30:1800+30"]

{[%evp 13,92,35,28,34,36,29,49,16,36,11,19,0,0,14,12,0,0,0,0,0,53,14,22,14,51,43,44,56,77,62,95,37,45,41,54,4,16,0,133,132,132,54,51,52,50,-190,-183,-174,-137,-137,-144,-144,-106,-110,-112,-125,-125,-137,-126,-175,-175,-165,-152,-268,-261,-850,-847,-842,-842,-825,-808,-824,-820,-791,-732,-29976,-791,-5102,-668,-4822,-431]} 1. Nf3 {[%emt 0:01:51]} d5 {[%emt 0:01:41][%cal Bd7d5,Bd5c4][%mdl 32]} 2. d4 {[%emt 0:00:58]} Nf6 {[%emt 0:00:55]} 3. c4 {[%emt 0:00:28]} e6 {[%emt 0:01:02]} 4. g3 {[%emt 0:06:16]} dxc4 {[%emt 0:00:25]} 5. Bg2 {[%emt 0:00:34]} a6 {[%emt 0:03:23]} 6. O-O {[%emt 0:08:05]} Nc6 {[%emt 0:00:24]} 7. e3 {[%emt 0:13:06]} Bd7 {[%emt 0:00:14]} 8. Qe2 {[%emt 0:02:46] E04: Open Catalan: 5 Nf3.} Bd6 $1 {[%emt 0:02:52][%mdl 4] outshines the older 8...b5.} 9. Qxc4 {[%emt 0:01:20]} O-O {[%emt 0:00:36]} 10. Rd1 {[%emt 0:11:14] White is slightly better.} Rb8 {[%emt 0:05:43]} 11. Qe2 {[%emt 0:02:36]} e5 {[%emt 0:04:28]} 12. dxe5 {[%emt 0:01:13]} Nxe5 {[%emt 0:00:07]} 13. Nxe5 {[%emt 0:00:16]} Bxe5 {[%emt 0:00:03]} 14. e4 {[%emt 0:00:23]} Qe7 {[%emt 0:13:23]} 15. Nc3 {[%emt 0:20:24] [#]} h6 $146 {[%emt 0:08:30]} ({Predecessor:} 15... Bg4 16. f3 Be6 17. Be3 Rfe8 18. Rac1 b5 19. Qf2 Bd6 20. b3 Ba3 21. Rc2 Rbd8 {½-½ (41) Edel,T (2095)-Gentemann,M (2195) Germany 2019}) 16. Be3 {[%emt 0:01:42]} c5 {[%emt 0:02:47]} (16... Rbd8 $11) 17. Rac1 {[%emt 0:06:03]} Rbc8 {[%emt 0:03:21]} 18. b3 {[%emt 0:05:26]} Bc6 {[%emt 0:06:36]} 19. Na4 {[%emt 0:09:31]} Bb5 {[%emt 0:10:49]} 20. Qc2 {[%emt 0:00:12] Threatens to win with Nb6.} Bxa4 {[%emt 0:07:01]} 21. bxa4 {[%emt 0:00:01][%cal Re3c5]} c4 {[%emt 0:00:12]} 22. Rb1 {[%emt 0:03:05]} (22. Qe2 $16) 22... Rfd8 {[%emt 0:08:57]} 23. Rxd8+ {[%emt 0:00:50]} Qxd8 {[%emt 0:00:07]} 24. Bh3 {[%emt 0:00:26]} ({Better is} 24. h3 $14) 24... Rc6 $1 $11 {[%emt 0:01:14]} (24... Rc7 25. Bb6 $16) 25. Rxb7 {[%emt 0:00:15]} Qd3 {[%emt 0:01:12]} (25... h5 $11 {remains equal.}) 26. Qxd3 $16 {[%emt 0:02:11]} cxd3 {[%emt 0:00:02]} 27. Rb1 {[%emt 0:01:27]} ({White should try} 27. Rb3 $16) 27... Nxe4 $14 {[%emt 0:01:12]} 28. Rd1 {[%emt 0:00:43]} d2 {[%emt 0:04:43] Strongly threatening ...Bb2.} 29. f3 $2 {[%emt 0:00:57] [#]} (29. Bf5 $14 {stays ahead.} Rc4 30. Bxd2) 29... Bd4 $1 $19 {[%emt 0:02:11][%mdl 512]} 30. fxe4 {[%emt 0:00:30] [#]} ({Not} 30. Bxd4 $2 Rc1 $1 31. fxe4 Rxd1+ 32. Kf2 Rf1+ $3 {[%mdl 512]} 33. Bxf1 d1=Q $19) 30... Rc1 $1 {[%emt 0:00:56]} 31. Bg4 {[%emt 0:00:12]} ({Don't go for} 31. Bxd4 $2 Rxd1+ 32. Kf2 {[#]} Rf1+ $3 {[%mdl 512]} 33. Bxf1 d1=Q $19) 31... Bxe3+ $17 {[%emt 0:00:06][%mdl 4096] Endgame KRB-KRB} 32. Kf1 {[%emt 0:00:07]} Rc4 {[%emt 0:01:29]} 33. Ke2 {[%emt 0:00:27]} Rxe4 {[%emt 0:00:31] Hoping for ...Bg5+.} 34. Bf3 {[%emt 0:00:10]} Re5 {[%emt 0:00:42] Black is more active.} 35. Kd3 {[%emt 0:00:34]} h5 {[%emt 0:02:38]} 36. Bxh5 {[%emt 0:01:22]} Rxh5 $19 {[%emt 0:00:08]} 37. Kxe3 {[%emt 0:00:01]} Rxh2 $17 {[%emt 0:00:10] ...f5 is the strong threat. KR-KR} 38. g4 {[%emt 0:01:14]} (38. Rxd2 Rxd2 39. Kxd2 Kh7 $19) (38. Kf4 $17 {was necessary.}) 38... Rh3+ $19 {[%emt 0:02:11]} 39. Ke4 $2 {[%emt 0:00:13]} (39. Kxd2 Ra3 40. a5) 39... Rg3 {[%emt 0:01:50]} 40. Kf4 {[%emt 0:00:34]} Rd3 {[%emt 0:00:06]} 41. Ke4 {[%emt 0:30:43]} Rd7 {[%emt 0:30:24]} 42. a5 {[%emt 0:00:00]} Kh7 {[%emt 0:00:00]} 43. Kf5 {[%emt 0:00:00]} Rd4 {[%emt 0:00:00]} 44. Rh1+ {[%emt 0:00:00]} Kg8 {[%emt 0:00:00]} 45. Rd1 {[%emt 0:00:00]} g6+ {[%emt 0:00:00]} (45... f6 $142 46. Ke6 Kf8) 46. Kf6 {[%emt 0:00:00]} Kf8 {[%emt 0:00:00] Weighted Error Value: White=0.52/Black=0.30} (46... Rd5 $142 47. Ke7 g5) 0-1

[Event "XV American Continental 2022"]
[Site "San Salvador"]
[Date "2022.05.05"]
[Round "4.1"]
[White "Valdes Romero, Leonardo"]
[Black "Swiercz, Dariusz"]
[Result "0-1"]
[ECO "A37"]
[WhiteElo "2403"]
[BlackElo "2665"]
[Annotator "TA"]
[PlyCount "78"]
[EventDate "2022.05.02"]
[EventCountry "ESA"]
[SourceTitle "playchess.com"]
[Source "ChessBase"]
[SourceQuality "1"]
[TimeControl "40/5400+30:1800+30"]

{[%evp 10,78,8,0,6,-7,2,5,13,14,10,11,10,0,0,0,11,14,6,6,19,15,17,14,27,10,6,13,16,0,0,0,0,0,0,0,0,0,0,0,6,6,19,0,0,0,0,0,0,0,0,-47,0,0,0,0,0,-629,-552,-903,-900,-816,-795,-2471,-2278,-1526,-1316,-29995,-29996,-29998,-29999]} 1. Nf3 {[%emt 0:05:28]} c5 {[%emt 0:00:53]} 2. c4 {[%emt 0:00:51]} g6 {[%emt 0:00:28]} 3. Nc3 {[%emt 0:02:06]} Bg7 {[%emt 0:00:12]} 4. g3 {[%emt 0:02:25]} Nc6 {[%emt 0:00:16]} 5. Bg2 {[%emt 0:00:06]} d6 {[%emt 0:00:14]} 6. a3 {[%emt 0:01:45]} Nf6 {[%emt 0:00:22] 6...e6 is the modern continuation. A37: Symmetrical English vs ...g6: 4 Bg2 Bg7 5 Nf3.} 7. Rb1 {[%emt 0:01:26]} O-O {[%emt 0:01:10]} 8. d3 {[%emt 0:01:21]} Rb8 $5 {[%emt 0:28:19][%mdl 4] The position is equal. A promising side line.} 9. b4 {[%emt 0:08:43]} b6 {[%emt 0:00:11]} 10. b5 {[%emt 0:09:59]} Nd4 {[%emt 0:21:26] [#]} 11. Nxd4 $146 {[%emt 0:13:43]} ({Predecessor:} 11. e4 Bg4 12. h3 Bxf3 13. Bxf3 Ne8 14. Bg2 Nc7 15. Bb2 e6 16. Ne2 Nxe2 17. Qxe2 Bxb2 18. Qxb2 e5 19. O-O Ne6 20. f4 f6 21. f5 Nd4 22. a4 Kg7 {½-½ (22) Barragan Arriaza,P (2030)-Lopez de Turiso,J (2022) Madrid 2018}) 11... cxd4 {[%emt 0:00:10]} 12. Nd5 {[%emt 0:00:43]} Bb7 {[%emt 0:01:46]} 13. O-O {[%emt 0:03:45]} Nxd5 {[%emt 0:15:51]} 14. cxd5 {[%emt 0:02:09]} Qd7 {[%emt 0:00:12]} 15. Rb4 {[%emt 0:06:51]} e5 {[%emt 0:15:24]} 16. dxe6 {[%emt 0:09:13]} fxe6 {[%emt 0:00:03]} 17. Qb3 {[%emt 0:00:15]} Bxg2 {[%emt 0:00:39]} 18. Kxg2 {[%emt 0:00:06]} d5 {[%emt 0:00:12]} 19. Bd2 {[%emt 0:18:00][%cal Bc1d2,Bd2e1,Be1f2][%mdl 32]} Rbc8 {[%emt 0:00:24]} 20. Qb1 {[%emt 0:01:01]} e5 {[%emt 0:04:14]} 21. Rb2 {[%emt 0:01:10][%cal Bb4b2,Bb2c2,Bc2c6][%mdl 32]} e4 {[%emt 0:01:18]} 22. a4 {[%emt 0:04:11]} ({Reject} 22. dxe4 dxe4 23. Rc2 Rcd8 $15) 22... e3 {[%emt 0:02:12]} 23. Be1 {[%emt 0:00:11]} exf2 {[%emt 0:00:04]} 24. Rxf2 {[%emt 0:00:09]} Bh6 {[%emt 0:00:52] [#] ...Rc1 is the strong threat.} 25. Rc2 {[%emt 0:01:01] Prevents Rc1.} Rce8 {[%emt 0:01:57]} 26. Qd1 {[%emt 0:03:06]} Rxf2+ {[%emt 0:03:05]} 27. Bxf2 {[%emt 0:00:15]} Be3 {[%emt 0:00:01]} 28. Qg1 {[%emt 0:03:29]} Qe6 {[%emt 0:00:58] aiming for ...Rf8.} 29. Rc6 {[%emt 0:00:49]} Qg4 {[%emt 0:00:07] Hoping for ...Bxf2.} 30. Qe1 {[%emt 0:00:38]} (30. Rc2 $11) 30... Bxf2 {[%emt 0:01:53]} (30... Rf8 $1 $15 {is more appropriate.} 31. Bg1 Qd7) 31. Kxf2 $15 {[%emt 0:00:05][%mdl 4096] Endgame KQR-KQR} Qh5 {[%emt 0:00:02]} 32. h4 {[%emt 0:00:49]} g5 {[%emt 0:00:18]} 33. Kf1 $2 {[%emt 0:00:39][%mdl 8192]} (33. hxg5 $11 Qxg5 34. Kg1) 33... gxh4 {[%emt 0:00:56]} 34. gxh4 {[%emt 0:00:05]} Rf8+ {[%emt 0:00:33]} ({Stronger than} 34... Qg4 35. Qf2 $11) 35. Kg2 {[%emt 0:00:27]} Kh8 {[%emt 0:00:01] And now ...Qg4+ would win.} 36. Kh3 {[%emt 0:00:44] [#] Against Qg4+} Qf5+ $1 {[%emt 0:00:25]} ({Weaker is} 36... Rg8 37. Qf2 Qg4+ 38. Kh2 $11) 37. Kh2 {[%emt 0:00:17]} Rg8 {[%emt 0:00:42] ( -> ...Qf4+)} 38. Rc2 {[%emt 0:00:49]} Qf4+ {[%emt 0:00:37]} 39. Kh3 {[%emt 0:00:36]} Qg4+ {[%emt 0:00:03] Weighted Error Value: White=0.66/Black=0.05 (flawless)} 0-1

[Event "XV American Continental 2022"]
[Site "San Salvador"]
[Date "2022.05.05"]
[Round "4.2"]
[White "Gareyev, Timur"]
[Black "Diaz Rosas, Julio Cesar"]
[Result "1-0"]
[ECO "E62"]
[WhiteElo "2565"]
[BlackElo "2351"]
[Annotator "TA"]
[PlyCount "65"]
[EventDate "2022.05.02"]
[EventCountry "ESA"]
[SourceTitle "playchess.com"]
[Source "ChessBase"]
[SourceQuality "1"]
[TimeControl "40/5400+30:1800+30"]

{[%evp 13,65,27,23,25,47,27,45,54,47,52,71,63,80,78,81,44,51,43,70,81,81,81,114,115,102,101,120,103,165,164,176,106,127,57,80,69,135,133,171,171,153,166,378,370,552,547,513,518,971,963,941,918,1198,1084]} 1. Nf3 {[%emt 0:00:25]} Nf6 {[%emt 0:00:56]} 2. g3 {[%emt 0:00:35]} g6 {[%emt 0:00:08]} 3. Bg2 {[%emt 0:00:07]} Bg7 {[%emt 0:00:06]} 4. c4 {[%emt 0:00:36]} O-O {[%emt 0:00:10]} 5. O-O {[%emt 0:00:05]} c6 {[%emt 0:05:51]} 6. d4 {[%emt 0:02:39]} d6 {[%emt 0:00:29]} 7. Nc3 {[%emt 0:00:11]} Bf5 {[%emt 0:00:08]} 8. Ng5 {[%emt 0:01:10] E62: King's Indian: Fianchetto: 6...c6 and Panno Variation (6...Nc6) without ...a6.} e5 {[%emt 0:02:46] The main line 8...e5 scores better than 8...h6.} 9. d5 {[%emt 0:00:30]} cxd5 {[%emt 0:08:03]} 10. Nxd5 {[%emt 0:00:18] White is slightly better.} Nc6 {[%emt 0:00:11]} 11. Nxf6+ {[%emt 0:00:49]} Bxf6 {[%emt 0:03:38]} 12. Ne4 {[%emt 0:00:07][%cal Bg5e4,Be4c3,Bc3d5][%mdl 32]} Be7 {[%emt 0:00:10]} 13. Bh6 {[%emt 0:00:45]} Re8 {[%emt 0:00:10]} 14. Qd2 {[%emt 0:01:03] White is more active.} Be6 {[%emt 0:06:46]} 15. b3 {[%emt 0:03:31]} Nd4 {[%emt 0:03:58] [#]} 16. Nc3 $146 {[%emt 0:01:12] Inhibits d5.} ({Predecessor:} 16. Be3 Nf5 17. Rfd1 Nxe3 18. Qxe3 Qc7 19. Nc3 a6 20. Nd5 Bxd5 21. Bxd5 Kg7 22. Qf3 {1-0 (63) Grischuk,A (2778)-Rakhmanov,A (2653) Moscow 2021}) 16... Qd7 {[%emt 0:15:19]} 17. Rfd1 {[%emt 0:01:37]} Rad8 {[%emt 0:10:10]} 18. Be3 {[%emt 0:00:31]} Nc6 {[%emt 0:12:51]} 19. Rac1 {[%emt 0:01:09]} f6 {[%emt 0:02:19]} 20. Nd5 {[%emt 0:00:20]} Kf7 {[%emt 0:01:26]} (20... Kh8 $16 21. Rc3 Rc8) 21. b4 {[%emt 0:00:58] b5 is the strong threat.} b6 {[%emt 0:00:14]} 22. Rc3 {[%emt 0:02:14]} ({White should try} 22. a4 $18) 22... Bf8 {[%emt 0:00:37]} 23. Bh6 {[%emt 0:05:45]} (23. a4 $16) 23... Bg7 {[%emt 0:02:50]} 24. Rd3 {[%emt 0:04:32]} Nd4 {[%emt 0:01:20]} ({Black should play} 24... Qc8 $14) 25. Be3 $16 {[%emt 0:04:11]} Nf5 {[%emt 0:06:25] [#]} 26. c5 $1 {[%emt 0:01:12]} bxc5 {[%emt 0:00:45]} 27. bxc5 {[%emt 0:00:27]} Qc8 {[%emt 0:03:52]} (27... dxc5 28. Bxc5 (28. Nxf6 Bxf6 29. Rxd7+ Rxd7 $16) 28... Qb5) 28. c6 $18 {[%emt 0:02:04]} Ne7 {[%emt 0:00:53]} (28... Qxc6 $142 29. Nxf6 Qa6) 29. Rc1 {White is clearly winning.} Nxd5 {[%emt 0:00:30]} 30. Bxd5 Qa6 {[%emt 0:00:30]} (30... Bxd5 $142 31. Rxd5 Re7) 31. Bxe6+ Kxe6 {[%emt 0:00:30]} 32. Rd5 Bf8 {[%emt 0:00:30]} 33. Ra5 {Weighted Error Value: White=0.07 (flawless) /Black=0.35} 1-0

[Event "XV American Continental 2022"]
[Site "San Salvador"]
[Date "2022.05.04"]
[Round "4.3"]
[White "Sarkar, Justin"]
[Black "Yoo, Christopher Woojin"]
[Result "0-1"]
[ECO "E10"]
[WhiteElo "2325"]
[BlackElo "2535"]
[Annotator "TA"]
[PlyCount "136"]
[EventDate "2022.05.02"]
[EventCountry "ESA"]
[SourceTitle "playchess.com"]
[Source "ChessBase"]
[SourceQuality "1"]
[TimeControl "40/5400+30:1800+30"]

{[%evp 19,136,-1,13,0,0,0,0,0,0,0,34,18,21,0,0,0,0,0,0,-8,-17,-17,-6,-7,-7,-7,0,0,0,0,-6,-7,0,0,0,0,0,0,0,0,0,0,0,0,0,0,0,0,0,0,0,0,0,-17,-17,-17,-17,-17,-17,-17,-10,-10,-10,-10,0,-10,-10,-10,-10,-14,-14,-14,0,0,0,0,0,0,0,0,0,0,0,0,0,0,0,0,0,0,0,-12821,-6652,-10251,-12819,-12811,-12802,-7549,-7517,-12076,-2567,-5606,-5306,-4015,-2872,-2414,-1492,-1894,-1636,-1682,-1401,-1450,-1429,-1358,0,-12842,-12843,-29997,-29998]} 1. d4 {[%emt 0:01:01]} Nf6 {[%emt 0:00:12]} 2. c4 {[%emt 0:00:20]} e6 {[%emt 0:00:08]} 3. Nf3 {[%emt 0:01:18]} d5 {[%emt 0:00:15]} 4. g3 {[%emt 0:03:13]} Bb4+ {[%emt 0:00:35]} 5. Bd2 {[%emt 0:00:17]} Be7 {[%emt 0:00:47]} 6. Bg2 {[%emt 0:00:16]} O-O {[%emt 0:00:13]} 7. O-O {[%emt 0:00:59]} Nbd7 {[%emt 0:00:42]} 8. Qc2 {[%emt 0:01:21]} c6 {[%emt 0:01:00]} 9. Bf4 {[%emt 0:01:16]} b6 {[%emt 0:01:27][%cal Bb7b6,Bb6b5,Bb5b4][%mdl 32]} 10. Nbd2 {[%emt 0:01:49]} Ba6 {[%emt 0:02:57]} 11. Rfc1 {[%emt 0:06:38] E11: Bogo-Indian.} Nh5 {[%emt 0:03:37]} 12. cxd5 {[%emt 0:04:36]} Nxf4 {[%emt 0:02:27]} 13. gxf4 {[%emt 0:00:08] The position is equal.} cxd5 {[%emt 0:00:55]} 14. e3 {[%emt 0:00:14] [#]} b5 $146 {[%emt 0:02:51]} ({Predecessor:} 14... Bd6 15. Ne5 Rc8 16. Qa4 Nb8 17. Bf1 Bxf1 18. Kxf1 Qe7 19. Ndf3 h6 20. Rc2 Qb7 {1-0 (40) Aronian,L (2783)-Pelletier,Y (2589) Mainz 2010}) 15. Nb3 {[%emt 0:03:16]} Rc8 {[%emt 0:08:28]} 16. Qd1 {[%emt 0:07:26]} Qb6 {[%emt 0:02:58]} 17. Ne5 {[%emt 0:02:48]} Nxe5 {[%emt 0:03:27]} 18. fxe5 {[%emt 0:00:13]} b4 {[%emt 0:01:36]} 19. Rxc8 {[%emt 0:02:32]} Rxc8 {[%emt 0:00:18]} 20. Rc1 {[%emt 0:00:10]} Bc4 {[%emt 0:04:15]} 21. Nd2 {[%emt 0:20:16][%cal Bb3d2,Bd2f1,Bf1g3][%mdl 32]} Qa6 {[%emt 0:02:37]} 22. Bf1 {[%emt 0:04:07]} Bxf1 {[%emt 0:00:58]} (22... Qxa2 $2 23. b3 $18) 23. Rxc8+ {[%emt 0:00:27]} Qxc8 {[%emt 0:00:04]} 24. Nxf1 {[%emt 0:00:15]} Qa6 {[%emt 0:02:12]} 25. Qb1 {[%emt 0:07:07]} h5 {[%emt 0:04:05]} 26. Kg2 $1 {[%emt 0:00:17]} g6 {[%emt 0:00:51]} 27. b3 {[%emt 0:01:37]} Qe2 {[%emt 0:03:14]} 28. Ng3 {[%emt 0:00:13]} Qd2 {[%emt 0:02:14]} 29. Nf1 $1 {[%emt 0:00:10]} Qc3 {[%emt 0:01:44]} 30. Qd1 {[%emt 0:01:53]} Qb2 {[%emt 0:02:45]} 31. Qd2 {[%emt 0:00:15]} Qb1 {[%emt 0:00:08]} 32. h3 {[%emt 0:00:40]} Qe4+ {[%emt 0:02:24]} 33. Kg1 {[%emt 0:04:53]} Qb1 {[%emt 0:04:38]} 34. Kg2 {[%emt 0:00:51]} a5 {[%emt 0:00:10]} 35. Qe2 {[%emt 0:02:51]} Kg7 {[%emt 0:00:57]} 36. Nh2 {[%emt 0:01:24]} Qe4+ {[%emt 0:01:48]} 37. f3 {[%emt 0:07:33]} Qf5 {[%emt 0:04:55]} 38. f4 {[%emt 0:00:09]} Qe4+ {[%emt 0:04:30]} 39. Nf3 {[%emt 0:00:26]} g5 {[%emt 0:01:13]} 40. fxg5 {[%emt 0:00:34]} Bxg5 {[%emt 0:00:05]} 41. Kf2 {[%emt 0:30:26]} Bh6 {[%emt 0:33:03]} 42. Nd2 {[%emt 0:03:25]} Qh1 {[%emt 0:05:51] aiming for ...Qh2+.} 43. Qf3 $1 {[%emt 0:03:39]} Qh2+ {[%emt 0:00:14]} 44. Ke1 {[%emt 0:00:20]} Bg5 {[%emt 0:02:48] Against Qf6+} 45. Kd1 {[%emt 0:01:07]} Kg6 {[%emt 0:02:49]} 46. Kc2 {[%emt 0:01:07]} Qg1 {[%emt 0:05:25]} 47. Nf1 {[%emt 0:00:40]} f6 {[%emt 0:01:18]} 48. exf6 {[%emt 0:00:35]} Bxf6 {[%emt 0:00:08]} 49. Kd3 {[%emt 0:01:08]} Qg5 {[%emt 0:02:01]} 50. Ke2 {[%emt 0:05:13]} Kh6 {[%emt 0:06:27]} 51. Ng3 {[%emt 0:00:12]} Qg6 {[%emt 0:03:04]} 52. Kf2 {[%emt 0:00:00]} Bg5 {[%emt 0:00:00]} 53. Qf8+ {[%emt 0:00:00]} Kh7 {[%emt 0:00:00][%cal Og5e3] And now ...Bxe3+! would win.} 54. Ne2 {[%emt 0:00:00]} Bf6 {[%emt 0:00:00]} 55. Nf4 $2 {[%emt 0:00:00][%mdl 8192]} (55. Ke1 $11) 55... Bh4+ $19 {[%emt 0:00:00]} 56. Kf1 {[%emt 0:00:00]} Qb1+ {[%emt 0:00:00]} 57. Kg2 {[%emt 0:00:00]} Qxa2+ {[%emt 0:00:00]} 58. Kh1 {[%emt 0:00:00]} Qb1+ {[%emt 0:00:00]} 59. Kh2 {[%emt 0:00:00]} Qc2+ {[%emt 0:00:00]} 60. Kh1 {[%emt 0:00:00]} Qd1+ {[%emt 0:00:00]} 61. Kh2 {[%emt 0:00:00] [#]} Qd2+ $1 {[%emt 0:00:00]} 62. Ng2 {[%emt 0:00:00]} Qf2 {[%emt 0:00:00]} 63. Qd6 {[%emt 0:00:00]} a4 {[%emt 0:00:00]} 64. Qd7+ {[%emt 0:00:00]} Kh8 {[%emt 0:00:00] ( -> ...Bg3+)} 65. Kh1 {[%emt 0:08:04]} axb3 {[%emt 0:00:00]} 66. Qxe6 {[%emt 0:01:09]} Bg5 $2 {[%emt 0:01:36]} (66... Qf3 $19 67. Qh6+ Kg8 68. Qg6+ Kf8 69. Qd6+ Kf7) 67. Qxd5 $2 {[%emt 0:00:35][%mdl 8192] [#]} (67. Qe5+ $11 Qf6 68. Qb8+ Kg7 69. Qxb4) 67... b2 $1 {[%emt 0:00:23]} 68. Qxg5 {[%emt 0:00:29]} (68. Qe5+ Qf6) 68... b1=Q+ {[%emt 0:00:05] Weighted Error Value: White=0.16 (very precise) /Black=0.09 (flawless)} 0-1